bitfinex/quotes_SOLUSD_20250918
["timestamp","ask_amount","ask_price","bid_price","bid_amount"]
[1758154829017,4.3779466,245.87,245.82,0.66]
[1758154829224,4.3779466,245.87,245.81,0.03]
[1758154830338,4.06669377,245.9,245.82,26.66]
[1758154830531,0.06,245.93,245.83,0.66]
[1758154830746,4.3779466,245.88,245.84,32.42]
[1758154830925,4.3779466,245.87,245.84,32.42]
[1758154831236,4.3779466,245.86,245.84,32.42]
[1758154831733,0.66,245.88,245.84,32.42]
[1758154831734,4.3779466,245.87,245.84,32.42]
[1758154831920,4.0673554,245.86,245.84,32.42]
[1758154832639,5.0379466,245.85,245.81,0.03]
[1758154832830,4.3779466,245.82,245.81,32.47]
[1758154833338,4.3779466,245.82,245.81,0.03]
[1758154833964,8.44596384,245.82,245.81,0.03]
[1758154834451,4.06780828,245.84,245.81,0.03]
[1758154834657,8.44575488,245.84,245.81,0.03]
[1758154835026,4.3779466,245.82,245.81,0.03]
[1758154836360,4.78780828,245.84,245.81,0.03]
[1758154836852,4.3779466,245.82,245.81,0.03]
[1758154837141,17.97354061,245.82,245.81,0.03]
[1758154837358,18.69354061,245.82,245.81,0.03]
[1758154838049,22.76155785,245.82,245.81,0.03]
[1758154838862,23.04588099,245.82,245.81,0.03]
[1758154840458,22.04155785,245.82,245.81,0.03]
[1758154840660,22.76155785,245.82,245.81,0.03]
[1758154840828,10.16760699,245.88,245.81,0.69]
[1758154841527,4.06718997,245.87,245.81,0.69]
[1758154842850,14.95516491,245.87,245.81,0.03]
[1758154843033,13.59559401,245.86,245.81,0.03]
[1758154843443,0.72,245.85,245.81,0.03]
[1758154843643,0.06,245.93,245.84,0.28432314]
[1758154843836,0.06,245.93,245.89,0.28432314]
[1758154844158,0.06,245.93,245.92,30.06636304]
[1758154844362,0.06,245.93,245.92,30.72636304]
[1758154844535,0.06,245.93,245.92,63.74636304]
[1758154846468,0.06,245.93,245.87,10.16761355]
[1758154846469,0.06,245.93,245.9,4.06661387]
[1758154846644,0.06,245.93,245.91,33.0]
[1758154847162,0.06,245.93,245.92,0.66]
[1758154847536,0.06,245.93,245.92,32.98]
[1758154848542,0.06,245.93,245.92,33.64]
[1758154851562,0.06,245.93,245.92,32.94]
[1758154852456,0.06,245.93,245.92,33.6]
[1758154852669,0.06,245.93,245.92,0.66]
[1758154852837,0.06,245.93,245.92,33.6]
[1758154853155,0.06,245.93,245.92,0.66]
[1758154853336,0.06,245.93,245.92,33.58]
[1758154853541,0.06,245.93,245.92,37.64636304]
[1758154853855,0.06,245.93,245.92,37.93068618]
[1758154854065,0.06,245.93,245.92,51.52628019]
[1758154854560,0.06,245.93,245.92,54.83930058]
[1758154854932,0.06,245.93,245.92,18.60628019]
[1758154855136,0.06,245.93,245.92,62.96636304]
[1758154855359,0.06,245.93,245.92,63.62636304]
[1758154856044,0.06,245.93,245.92,62.96636304]
[1758154856566,0.06,245.93,245.92,58.9]
[1758154857747,0.06,245.93,245.92,58.88]
[1758154858737,0.78,245.93,245.92,32.86]
[1758154858953,0.06,245.93,245.92,32.86]
[1758154859343,0.77,245.93,245.92,32.86]
[1758154860255,0.77,245.93,245.87,26.0]
[1758154860449,4.83626707,245.93,245.87,26.0]
[1758154860650,0.77,245.93,245.88,32.84]
[1758154861471,0.06,245.93,245.88,32.84]
[1758154861771,0.71,245.92,245.88,32.84]
[1758154861944,0.06,245.93,245.88,32.84]
[1758154861945,0.71,245.91,245.88,32.84]
[1758154862372,0.06,245.93,245.88,32.84]
[1758154862563,0.06,245.93,245.88,36.9069656]
[1758154862745,0.77,245.93,245.88,36.9069656]
[1758154862946,0.71,245.92,245.87,0.03]
[1758154863172,0.71,245.92,245.89,32.8]
[1758154863871,0.71,245.92,245.9,32.8]
[1758154864254,0.06,245.93,245.9,32.8]
[1758154865671,4.77636304,245.92,245.87,0.03]
[1758154865967,6.31478508,245.9,245.88,32.8]
[1758154866172,0.71,245.89,245.88,32.8]
[1758154867164,4.06702456,245.88,245.87,0.03]
[1758154867376,4.77702456,245.88,245.87,32.81]
[1758154869571,11.09180964,245.88,245.87,0.03]
[1758154869879,11.09180964,245.88,245.87,32.77]
[1758154872171,11.09180964,245.88,245.87,0.03]
[1758154873670,24.68740365,245.88,245.87,0.03]
[1758154874973,18.37261857,245.88,245.87,0.03]
[1758154875349,24.68740365,245.88,245.87,0.03]
[1758154875583,4.06702456,245.88,245.87,0.03]
[1758154875961,4.77702456,245.88,245.87,0.03]
[1758154877861,6.31478508,245.9,245.87,0.03]
[1758154877862,4.06683378,245.9,245.87,0.03]
[1758154878153,17.66242779,245.9,245.87,0.03]
[1758154878460,4.77683378,245.9,245.87,0.03]
[1758154878977,4.06683378,245.9,245.87,0.03]
[1758154879183,0.71,245.89,245.87,0.03]
[1758154879478,4.77683378,245.9,245.87,0.03]
[1758154880250,4.06702456,245.88,245.87,0.03]
[1758154881555,4.77702456,245.88,245.87,0.03]
[1758154882183,4.06702456,245.88,245.87,0.03]
[1758154885684,0.71,245.95,245.87,0.75]
[1758154885886,20.68037909,245.98,245.87,0.75]
[1758154886587,4.12584454,245.96,245.89,26.0]
[1758154886883,7.02478508,245.92,245.9,32.54]
[1758154887186,7.02478508,245.92,245.87,0.03]
[1758154887187,7.02478508,245.91,245.89,32.54]
[1758154887485,7.02478508,245.9,245.89,32.54]
[1758154887684,6.31478508,245.9,245.88,32.56]
[1758154888068,6.31478508,245.9,245.87,0.03]
[1758154888387,6.31478508,245.9,245.87,32.57]
[1758154888586,7.02478508,245.89,245.87,0.03]
[1758154888784,4.06702456,245.88,245.87,32.57]
[1758154889690,4.06702456,245.88,245.87,32.55]
[1758154891386,4.06682105,245.9,245.87,32.55]
[1758154891576,7.02478508,245.89,245.87,32.53]
[1758154891783,7.02478508,245.88,245.87,32.53]
[1758154891976,7.02478508,245.88,245.87,0.03]
[1758154892291,6.31478508,245.88,245.87,0.03]
[1758154892993,10.38180964,245.88,245.87,0.03]
[1758154895491,11.10180964,245.88,245.87,0.03]
[1758154895886,24.69740365,245.88,245.87,0.03]
[1758154896783,24.98172679,245.88,245.87,0.03]
[1758154900286,0.28432314,245.86,245.82,0.03]
[1758154900486,20.19470223,245.83,245.82,0.03]
[1758154900792,20.91470223,245.83,245.82,0.03]
[1758154901300,0.72,245.87,245.82,0.03]
[1758154901486,19.91037909,245.86,245.82,0.75]
[1758154901685,6.31478508,245.86,245.82,0.75]
[1758154901886,4.06752084,245.85,245.82,0.03]
[1758154902093,4.06752084,245.85,245.83,0.72]
[1758154902699,4.06752084,245.85,245.82,0.03]
[1758154902892,4.06752084,245.85,245.82,0.75]
[1758154903792,10.38230592,245.85,245.82,0.03]
[1758154903983,4.06730443,245.87,245.83,0.72]
[1758154904183,4.06730443,245.87,245.84,0.72]
[1758154904384,4.06730443,245.87,245.85,0.72]
[1758154904802,4.06730443,245.87,245.83,0.72]
[1758154904975,4.06730443,245.87,245.84,0.72]
[1758154905779,27.82844342,245.91,245.84,0.72]
[1758154905980,4.12623572,245.93,245.85,26.72]
[1758154906198,0.06,245.93,245.86,0.72]
[1758154906702,4.36865094,245.9,245.82,0.03]
[1758154906881,4.36865094,245.9,245.84,33.16]
[1758154907803,4.06685916,245.89,245.85,0.72]
[1758154908116,4.12623102,245.93,245.87,26.0]
[1758154908284,4.12623102,245.93,245.88,0.72]
[1758154908700,4.12623102,245.93,245.87,26.0]
[1758154909010,0.06,245.93,245.88,0.72]
[1758154909309,8.49492538,245.93,245.84,32.44]
[1758154909481,4.36865094,245.91,245.85,0.72]
[1758154909789,8.4355101,245.89,245.85,32.44]
[1758154910103,4.36865094,245.91,245.86,0.72]
[1758154910289,10.22549424,245.93,245.87,0.72]
[1758154910290,13.59559401,245.92,245.87,0.72]
[1758154910491,4.06636304,245.92,245.87,0.72]
[1758154910694,4.06636304,245.92,245.85,32.44]
[1758154910695,4.12623221,245.93,245.88,0.72]
[1758154910913,4.12623221,245.93,245.89,0.72]
[1758154911087,4.12623221,245.93,245.85,32.44]
[1758154911088,4.12623221,245.93,245.9,0.72]
[1758154912596,4.12623221,245.93,245.88,26.0]
[1758154912811,4.12623221,245.93,245.89,0.72]
[1758154913305,4.12623221,245.93,245.88,26.0]
[1758154913509,0.06,245.93,245.9,0.72]
[1758154913697,0.06,245.93,245.91,33.14]
[1758154915407,0.06,245.93,245.92,0.72]
[1758154915590,0.06,245.93,245.92,33.12]
[1758154917998,0.06,245.93,245.92,32.4]
[1758154918202,4.12627016,245.93,245.92,32.38]
[1758154918398,4.12627016,245.93,245.88,26.0]
[1758154918601,4.84627016,245.93,245.89,32.36]
[1758154919012,0.06,245.93,245.89,32.36]
[1758154919312,0.06,245.93,245.9,0.68]
[1758154919713,0.06,245.93,245.91,0.68]
[1758154920215,0.06,245.93,245.92,26.0]
[1758154920608,0.06,245.93,245.92,26.68]
[1758154921725,0.06,245.93,245.92,30.74636304]
[1758154922298,0.06,245.93,245.92,63.12636304]
[1758154922494,0.06,245.93,245.92,63.41068618]
[1758154923624,0.06,245.93,245.92,59.06]
[1758154924706,0.06,245.93,245.92,59.34432314]
[1758154925198,0.06,245.93,245.92,33.34432314]
[1758154929726,0.06,245.93,245.88,0.67]
[1758154929906,0.72,245.92,245.85,4.06739692]
[1758154930105,0.72,245.91,245.82,0.03]
[1758154930314,2.39624396,245.91,245.83,32.34]
[1758154930507,0.72,245.91,245.86,26.0]
[1758154930733,0.72,245.9,245.87,32.34]
[1758154931025,0.72,245.89,245.87,32.34]
[1758154931328,0.72,245.88,245.82,0.03]
[1758154931625,0.72,245.88,245.86,26.0]
[1758154931808,4.36845455,245.87,245.82,0.03]
[1758154932007,4.36845455,245.87,245.83,32.34]
[1758154932328,0.72,245.86,245.83,32.34]
[1758154932530,4.36845455,245.84,245.82,0.03]
[1758154932707,17.96404856,245.83,245.82,0.03]
[1758154932908,22.75190032,245.83,245.82,0.03]
[1758154933116,13.59559401,245.82,245.79,0.03]
[1758154933322,4.36845455,245.8,245.77,0.03]
[1758154933531,4.36845455,245.79,245.77,0.03]
[1758154933730,5.08845455,245.79,245.77,0.03]
[1758154934830,4.78851377,245.79,245.77,0.03]
[1758154935012,9.15696832,245.79,245.77,0.03]
[1758154936328,4.78851377,245.79,245.77,0.03]
[1758154936533,9.15696832,245.79,245.77,0.03]
[1758154937936,4.78851377,245.79,245.77,0.03]
[1758154938236,5.08845455,245.83,245.77,0.03]
[1758154938616,0.72,245.82,245.77,0.03]
[1758154939040,0.72,245.81,245.77,0.03]
[1758154939422,4.78818997,245.81,245.77,0.03]
[1758154939632,0.72,245.8,245.77,0.03]
[1758154940537,0.72,245.79,245.77,0.03]
[1758154940922,5.08845455,245.79,245.77,0.03]
[1758154941128,0.72,245.79,245.77,0.03]
[1758154941433,5.08845455,245.79,245.77,0.03]
[1758154941734,18.9683717,245.79,245.77,0.03]
[1758154941940,13.87991715,245.78,245.77,0.03]
[1758154942141,22.317051,245.78,245.67,32.32]
[1758154942456,13.59559401,245.76,245.64,26.0]
[1758154942623,4.36845455,245.7,245.62,0.2]
[1758154942828,4.36845455,245.7,245.63,32.32]
[1758154943142,4.36845455,245.71,245.66,26.0]
[1758154943331,5.08845455,245.71,245.66,26.0]
[1758154943532,4.07000407,245.7,245.66,26.0]
[1758154943845,8.43845862,245.7,245.66,26.0]
[1758154944030,5.08845455,245.71,245.66,26.0]
[1758154944234,4.06978143,245.72,245.66,26.67]
[1758154944235,8.43823598,245.72,245.66,26.67]
[1758154945529,0.72,245.74,245.66,26.67]
[1758154945530,0.72,245.81,245.68,0.28432314]
[1758154945738,0.72,245.81,245.7,26.0]
[1758154945941,0.72,245.81,245.74,26.0]
[1758154946239,4.78825869,245.81,245.74,26.0]
[1758154946443,4.36845455,245.8,245.75,32.44]
[1758154946645,4.36845455,245.8,245.71,0.67]
[1758154946646,5.08845455,245.8,245.71,0.67]
[1758154946849,4.36845455,245.78,245.67,14.24675376]
[1758154947160,0.72,245.77,245.71,26.0]
[1758154947328,0.72,245.77,245.72,32.42]
[1758154947528,13.59559401,245.8,245.72,32.42]
[1758154947529,14.31559401,245.8,245.72,32.42]
[1758154947856,4.06851377,245.79,245.72,32.42]
[1758154949547,4.06851377,245.79,245.74,0.03]
[1758154949749,4.06884485,245.77,245.74,0.03]
[1758154950356,0.06,245.81,245.75,0.67]
[1758154950642,0.06,245.81,245.75,26.67]
[1758154951438,0.06,245.81,245.75,26.0]
[1758154951648,0.06,245.81,245.76,0.67]
[1758154951830,0.06,245.81,245.77,0.67]
[1758154952160,0.06,245.81,245.78,32.4]
[1758154952362,0.06,245.81,245.75,26.0]
[1758154952363,0.06,245.81,245.74,0.03]
[1758154952655,4.84827686,245.81,245.75,32.4]
[1758154953329,0.06,245.81,245.76,0.69]
[1758154953531,0.06,245.81,245.77,0.69]
[1758154953752,0.06,245.81,245.78,0.69]
[1758154954256,0.06,245.81,245.77,4.06872648]
[1758154954257,0.06,245.81,245.79,0.69]
[1758154955032,0.06,245.81,245.78,26.0]
[1758154955351,0.06,245.81,245.8,26.69]
[1758154955554,0.06,245.81,245.8,59.09]
[1758154956249,0.06,245.81,245.8,63.15834825]
[1758154957460,0.06,245.81,245.8,30.75834825]
[1758154957647,0.06,245.81,245.8,32.4]
[1758154957847,0.06,245.81,245.8,58.4]
[1758154958146,0.06,245.81,245.77,0.69]
[1758154958354,0.06,245.81,245.78,32.42]
[1758154959343,0.06,245.81,245.78,33.11]
[1758154960040,0.06,245.81,245.78,32.42]
[1758154961354,0.06,245.81,245.78,33.11]
[1758154961755,0.06,245.81,245.75,4.75905489]
[1758154961958,0.06,245.81,245.79,26.0]
[1758154962133,0.06,245.81,245.8,32.38]
[1758154962333,0.06,245.81,245.74,0.03]
[1758154962530,0.06,245.81,245.75,58.38]
[1758154962957,0.06,245.81,245.74,0.03]
[1758154962958,4.36845455,245.78,245.74,0.03]
[1758154963255,0.66,245.77,245.75,32.4]
[1758154963452,0.66,245.76,245.75,32.4]
[1758154964537,0.66,245.76,245.75,32.38]
[1758154965451,5.02845455,245.78,245.75,32.38]
[1758154965654,0.66,245.77,245.75,32.38]
[1758154965956,6.3264934,245.79,245.75,32.38]
[1758154966158,0.66,245.78,245.75,32.38]
[1758154966660,6.3264934,245.79,245.75,32.38]
[1758154966862,0.66,245.78,245.75,32.38]
[1758154967046,4.06884485,245.77,245.74,0.03]
[1758154967361,4.72884485,245.77,245.75,32.34]
[1758154968264,6.9864934,245.76,245.69,26.03]
[1758154968464,19.92208741,245.72,245.69,0.03]
[1758154968766,0.28432314,245.71,245.69,0.03]
[1758154968943,0.28432314,245.69,245.62,0.2]
[1758154969145,6.3264934,245.63,245.62,0.2]
[1758154969563,6.9864934,245.63,245.62,0.2]
[1758154969940,7.27081654,245.63,245.62,0.2]
[1758154970359,7.27081654,245.63,245.62,1e-08]
[1758154970360,11.34198048,245.63,245.62,1e-08]
[1758154970561,27.18311883,245.63,245.62,1e-08]
[1758154970940,59.62311883,245.63,245.62,1e-08]
[1758154971136,13.59559401,245.59,245.57,0.2]
[1758154971373,6.61081654,245.58,245.57,0.2]
[1758154971540,7.27081654,245.58,245.57,0.2]
[1758154972271,24.93840338,245.58,245.57,1e-08]
[1758154974860,18.61190998,245.58,245.57,1e-08]
[1758154975063,24.93840338,245.58,245.57,1e-08]
[1758154975271,24.27840338,245.58,245.57,1e-08]
[1758154976266,24.93840338,245.58,245.57,1e-08]
[1758154977365,23.99408024,245.58,245.57,1e-08]
[1758154978982,13.59559401,245.63,245.57,0.69000001]
[1758154979277,6.3264934,245.61,245.57,0.69000001]
[1758154979653,6.3264934,245.61,245.58,0.69]
[1758154980560,10.39787216,245.62,245.58,0.69]
[1758154980771,10.39787216,245.62,245.57,1e-08]
[1758154981373,32.52216157,245.66,245.58,0.69]
[1758154981374,6.3264934,245.64,245.58,0.69]
[1758154982376,19.92208741,245.65,245.58,0.69]
[1758154982751,6.3264934,245.59,245.57,1e-08]
[1758154983182,7.0164934,245.59,245.57,1e-08]
[1758154983359,4.07199283,245.58,245.57,1e-08]
[1758154984158,10.39848623,245.58,245.57,1e-08]
[1758154984370,11.08848623,245.58,245.57,1e-08]
[1758154984556,10.39848623,245.58,245.57,1e-08]
[1758154985861,4.07199283,245.58,245.57,1e-08]
[1758154986073,10.39848623,245.58,245.57,1e-08]
[1758154986287,0.06,245.61,245.57,0.72000001]
[1758154986452,0.06,245.61,245.57,1e-08]
[1758154986654,6.3264934,245.59,245.57,1e-08]
[1758154986894,6.3264934,245.58,245.57,1e-08]
[1758154987180,7.0164934,245.58,245.57,1e-08]
[1758154987382,6.3264934,245.58,245.57,1e-08]
[1758154987577,10.39848623,245.58,245.57,1e-08]
[1758154987881,24.68408024,245.58,245.57,1e-08]
[1758154988095,24.96840338,245.58,245.57,1e-08]
[1758154994586,57.24840338,245.58,245.57,1e-08]
[1758154995467,24.96840338,245.58,245.57,1e-08]
[1758154995667,57.24840338,245.58,245.57,1e-08]
[1758154997489,57.22840338,245.58,245.57,1e-08]
[1758154998561,39.87991715,245.56,245.55,0.03]
[1758154998763,46.20641055,245.56,245.55,0.03]
[1758154998987,46.89641055,245.56,245.55,0.03]
[1758154999184,79.13641055,245.56,245.55,0.03]
[1758154999568,83.20873503,245.56,245.55,0.03]
[1758155000360,83.20873503,245.56,245.54,1e-08]
[1758155000361,13.59559401,245.55,245.54,1e-08]
[1758155000774,14.28559401,245.55,245.54,1e-08]
[1758155001486,14.56991715,245.55,245.54,1e-08]
[1758155001786,46.82991715,245.55,245.54,1e-08]
[1758155002774,34.61757757,245.54,245.44,0.72]
[1758155002985,6.3264934,245.45,245.44,0.72]
[1758155003180,6.3264934,245.45,245.39,0.2]
[1758155003489,0.28432314,245.47,245.41,0.72]
[1758155003789,13.87991715,245.47,245.41,0.72]
[1758155004091,0.28432314,245.45,245.39,0.92]
[1758155004397,10.18376081,245.49,245.4,0.72]
[1758155004694,13.59559401,245.48,245.4,0.72]
[1758155005787,4.07381757,245.47,245.4,0.72]
[1758155005975,10.40031097,245.47,245.4,0.72]
[1758155008473,10.40031097,245.47,245.4,4.79495081]
[1758155008686,10.40031097,245.47,245.41,0.72]
[1758155009578,6.3264934,245.45,245.41,0.72]
[1758155009781,2.63038085,245.45,245.41,0.72]
[1758155009984,6.70466658,245.45,245.41,0.72]
[1758155010395,6.70466658,245.45,245.39,0.2]
[1758155010396,2.63038085,245.43,245.39,0.2]
[1758155010773,2.63038085,245.43,245.4,0.72]
[1758155011593,6.70488529,245.43,245.4,0.72]
[1758155012103,2.63038085,245.41,245.39,0.2]
[1758155013295,6.70525176,245.41,245.39,0.2]
[1758155013495,4.07487091,245.41,245.39,0.91]
[1758155014001,6.70525176,245.41,245.39,0.2]
[1758155015391,17.66990952,245.44,245.39,0.2]
[1758155015592,18.37990952,245.44,245.39,0.91]
[1758155015907,2.63038085,245.43,245.39,0.2]
[1758155016896,13.59559401,245.47,245.4,0.71]
[1758155017100,2.63038085,245.44,245.4,0.71]
[1758155017295,2.63038085,245.44,245.39,0.2]
[1758155017514,4.07481357,245.41,245.39,0.2]
[1758155018698,0.71,245.4,245.39,0.2]
[1758155019084,4.78481357,245.41,245.39,0.2]
[1758155019498,2.63038085,245.4,245.39,0.2]
[1758155020497,6.70519442,245.41,245.39,0.2]
[1758155022310,7.41519442,245.41,245.39,0.2]
[1758155022487,6.70519442,245.41,245.39,0.2]
[1758155022694,0.71,245.4,245.39,0.2]
[1758155023087,6.70519442,245.41,245.39,0.2]
[1758155023706,2.63038085,245.43,245.4,0.71]
[1758155024005,13.59559401,245.44,245.39,0.2]
[1758155024206,0.71,245.43,245.39,0.2]
[1758155024398,3.34038085,245.43,245.39,0.2]
[1758155025294,2.63038085,245.41,245.39,0.2]
[1758155025895,32.54432314,245.48,245.39,0.2]
[1758155025896,0.77,245.53,245.4,0.71]
[1758155026101,1.68387373,245.49,245.43,26.0]
[1758155026294,15.02668239,245.5,245.39,0.2]
[1758155026295,1.68387373,245.45,245.39,0.2]
[1758155026608,1.68387373,245.43,245.39,0.2]
[1758155027003,1.68387373,245.43,245.39,0.91]
[1758155027192,4.07464754,245.42,245.39,0.2]
[1758155027606,4.07464754,245.42,245.39,0.91]
[1758155028192,4.07464754,245.42,245.39,0.2]
[1758155029004,1.68387373,245.43,245.39,0.91]
[1758155030009,5.75841607,245.43,245.39,0.91]
[1758155031092,5.75822225,245.44,245.4,0.71]
[1758155031611,5.75822225,245.44,245.39,0.2]
[1758155031810,6.46822225,245.44,245.39,0.2]
[1758155032205,6.46822225,245.44,245.39,0.91]
[1758155032913,1.68387373,245.42,245.39,0.2]
[1758155033912,2.39387373,245.42,245.39,0.2]
[1758155034102,1.68387373,245.4,245.39,0.2]
[1758155035900,2.39387373,245.4,245.39,0.2]
[1758155038712,15.98946774,245.4,245.39,0.2]
[1758155040330,22.72496266,245.4,245.39,0.2]
[1758155040509,16.27379088,245.4,245.39,0.2]
[1758155040825,23.0092858,245.4,245.39,0.2]
[1758155040997,19.63893656,245.39,245.38,0.03]
[1758155041399,20.29893656,245.39,245.38,0.03]
[1758155042303,57.56017584,245.39,245.36,1e-08]
[1758155042503,15.56379088,245.37,245.36,1e-08]
[1758155042703,20.56536908,245.37,245.36,1e-08]
[1758155042903,21.27536908,245.37,245.36,1e-08]
[1758155044410,25.35084692,245.37,245.36,1e-08]
[1758155045002,57.61084692,245.37,245.36,1e-08]
[1758155046926,39.59559401,245.35,245.34,1e-08]
[1758155047224,46.28104594,245.35,245.34,1e-08]
[1758155047431,46.99104594,245.35,245.34,1e-08]
[1758155048203,13.87991715,245.34,245.33,1e-08]
[1758155048414,15.56379088,245.34,245.33,1e-08]
[1758155048602,16.27379088,245.34,245.33,1e-08]
[1758155049326,13.59559401,245.3,245.2,0.66]
[1758155049523,1.68387373,245.24,245.2,0.66]
[1758155050033,1.68387373,245.24,245.21,0.66]
[1758155050231,13.59559401,245.27,245.22,0.66]
[1758155050404,13.59559401,245.27,245.14,4.07917819]
[1758155050405,1.68387373,245.23,245.2,0.66]
[1758155050604,1.68387373,245.21,245.2,0.66]
[1758155051036,1.68387373,245.22,245.2,0.66]
[1758155051202,1.68387373,245.22,245.21,0.66]
[1758155051408,5.7617099,245.23,245.21,0.66]
[1758155051612,1.68387373,245.23,245.21,0.66]
[1758155051925,1.68387373,245.23,245.14,30.07917819]
[1758155052137,1.68387373,245.23,245.22,0.66]
[1758155052433,1.68387373,245.23,245.15,26.66]
[1758155052613,4.0775208,245.25,245.16,0.66]
[1758155052614,1.68387373,245.2,245.16,0.66]
[1758155053419,4.07792047,245.23,245.16,0.66]
[1758155053614,4.07792047,245.23,245.14,0.66]
[1758155053615,1.68387373,245.18,245.14,0.66]
[1758155053821,1.68387373,245.19,245.14,0.66]
[1758155054027,1.68387373,245.2,245.14,0.66]
[1758155054419,4.07754413,245.25,245.14,0.66]
[1758155054608,5.76141786,245.25,245.14,0.66]
[1758155055238,5.76165629,245.24,245.14,4.73921111]
[1758155055530,1.68387373,245.23,245.15,0.66]
[1758155056138,4.07778256,245.24,245.15,0.66]
[1758155056426,5.76165629,245.24,245.15,0.66]
[1758155056631,1.68387373,245.24,245.16,4.07896883]
[1758155056840,1.68387373,245.24,245.17,0.66]
[1758155057243,5.76158061,245.24,245.17,0.66]
[1758155057544,1.68387373,245.23,245.17,0.66]
[1758155057946,5.76158061,245.24,245.17,0.66]
[1758155058724,4.07770688,245.24,245.17,4.73872146]
[1758155058925,1.68387373,245.22,245.18,0.66]
[1758155059250,2.39387373,245.22,245.16,0.66]
[1758155059442,1.68387373,245.21,245.16,0.66]
[1758155059754,4.07770688,245.24,245.16,0.66]
[1758155059926,1.68387373,245.23,245.16,0.66]
[1758155060642,5.76158061,245.24,245.16,0.66]
[1758155060849,1.68387373,245.22,245.16,4.73885524]
[1758155061147,1.68387373,245.23,245.17,0.69]
[1758155061823,18.3830087,245.26,245.17,0.69]
[1758155062144,1.68387373,245.24,245.17,0.69]
[1758155062335,1.68387373,245.21,245.17,0.69]
[1758155062536,1.68387373,245.2,245.17,0.03]
[1758155062729,1.68387373,245.19,245.17,0.03]
[1758155063134,1.68387373,245.18,245.17,0.03]
[1758155065624,2.39387373,245.18,245.17,0.03]
[1758155066654,0.71,245.18,245.17,0.03]
[1758155066853,2.39387373,245.18,245.17,0.03]
[1758155068346,0.71,245.18,245.17,0.03]
[1758155068537,2.39387373,245.18,245.17,0.03]
[1758155068850,15.98946774,245.18,245.17,0.03]
[1758155069561,22.72496266,245.18,245.17,0.03]
[1758155069855,23.0092858,245.18,245.17,0.03]
[1758155070727,16.27379088,245.18,245.17,0.03]
[1758155070957,0.71,245.18,245.17,0.03]
[1758155071249,2.39387373,245.18,245.17,0.03]
[1758155071749,1.68387373,245.18,245.17,0.03]
[1758155071960,4.07825151,245.21,245.17,0.69]
[1758155072132,1.68387373,245.2,245.17,0.69]
[1758155072333,1.68387373,245.18,245.17,0.03]
[1758155072752,6.46250983,245.18,245.17,0.03]
[1758155073357,5.76250983,245.18,245.17,0.03]
[1758155073544,6.46250983,245.18,245.17,0.03]
[1758155073859,27.0779219,245.18,245.17,0.03]
[1758155074365,39.59559401,245.14,245.12,0.03]
[1758155074539,33.94387373,245.13,245.12,0.03]
[1758155074733,33.94387373,245.13,245.02,0.66]
[1758155074734,13.59559401,245.12,245.02,0.66]
[1758155074930,0.7,245.11,245.02,0.66]
[1758155075273,1.68387373,245.03,244.95,24.1]
[1758155075459,0.7,245.05,244.97,0.66]
[1758155075758,13.59559401,245.1,244.98,26.0]
[1758155075967,4.07946803,245.13,244.99,0.66]